[Event "Niedersachsen-ch Meister 2024"]
[Site "Verden Aller"]
[Date "2024.01.04"]
[Round "1.1"]
[White "Mueer, Sebastian"]
[Black "Abel, Dennes"]
[Result "0-1"]
[ECO "D10"]
[WhiteElo "2189"]
[BlackElo "2417"]
[Annotator "RC"]
[PlyCount "110"]
[EventDate "2024.01.01"]
[EventType "swiss"]
[EventCountry "GER"]
[SourceTitle "playchess.com"]
[Source "ChessBase"]
[SourceQuality "1"]
[TimeControl "40/5400+30:1800+30"]

1. d4 {[%emt 0:00:07]} d5 {[%emt 0:00:39]} 2. c4 {[%emt 0:00:20]} c6 {[%emt 0:00:46]} 3. Nc3 {[%emt 0:00:30]} dxc4 {[%emt 0:00:53]} 4. e3 {[%emt 0:01:43]} e5 {[%emt 0:03:13]} 5. Bxc4 {[%emt 0:03:24]} exd4 {[%emt 0:00:15]} 6. exd4 {[%emt 0:01:03]} Nf6 {[%emt 0:04:02]} 7. Nf3 {[%emt 0:00:25]} Be7 {[%emt 0:01:48]} 8. O-O {[%emt 0:02:49]} O-O {[%emt 0:00:58]} 9. Ne5 {[%emt 0:16:36]} Nbd7 {[%emt 0:12:58]} 10. Qe2 {[%emt 0:15:26]} Nb6 {[%emt 0:03:03]} 11. Bb3 {[%emt 0:00:36]} Nbd5 {[%emt 0:06:31]} 12. Re1 {[%emt 0:13:22]} Be6 {[%emt 0:11:39]} 13. Qf3 {[%emt 0:15:02]} Nc7 {[%emt 0:07:31]} 14. Bxe6 {[%emt 0:04:25]} Nxe6 {[%emt 0:00:30]} 15. Be3 {[%emt 0:02:10]} Nc7 {[%emt 0:05:31]} 16. Rad1 {[%emt 0:01:48]} Nfd5 {[%emt 0:01:54]} 17. Bd2 {[%emt 0:04:41]} f6 {[%emt 0:06:15]} 18. Nd3 {[%emt 0:00:22]} Bd6 {[%emt 0:07:26]} 19. Nc5 {[%emt 0:03:55]} Bxc5 {[%emt 0:07:35]} 20. dxc5 {[%emt 0:00:02]} Nxc3 {[%emt 0:06:30]} 21. bxc3 {[%emt 0:00:01]} Re8 {[%emt 0:00:32]} 22. Bf4 {[%emt 0:01:31]} Rxe1+ {[%emt 0:02:01]} 23. Rxe1 {[%emt 0:00:01]} Nd5 {[%emt 0:00:15]} 24. Bd6 {[%emt 0:02:57]} b5 {[%emt 0:03:03]} 25. h4 {[%emt 0:05:42]} Qd7 {[%emt 0:00:39]} 26. a4 {[%emt 0:00:24]} a6 {[%emt 0:00:19]} 27. axb5 {[%emt 0:00:01]} axb5 {[%emt 0:00:04]} 28. c4 {[%emt 0:02:26]} bxc4 {[%emt 0:00:27]} 29. Qe4 {[%emt 0:00:45]} c3 {[%emt 0:00:53]} 30. h5 {[%emt 0:00:42]} f5 {[%emt 0:02:40]} 31. Qc4 {[%emt 0:00:01]} Re8 {[%emt 0:00:53]} 32. Be5 {[%emt 0:00:49]} Qf7 {[%emt 0:01:51]} 33. h6 {[%emt 0:00:48]} g5 {[%emt 0:01:35]} 34. Bxc3 {[%emt 0:00:13]} Rxe1+ {[%emt 0:00:10]} 35. Bxe1 {[%emt 0:00:01]} Qe6 {[%emt 0:00:11]} 36. Bd2 {[%emt 0:02:03]} Qxh6 {[%emt 0:00:29]} 37. Qa6 {[%emt 0:00:16]} Qf6 {[%emt 0:01:26]} 38. Qb7 {[%emt 0:01:28]} h6 {[%emt 0:00:52]} 39. g3 {[%emt 0:00:11]} f4 {[%emt 0:00:47]} 40. gxf4 {[%emt 0:00:35]} gxf4 {[%emt 0:00:30]} 41. Kg2 {[%emt 0:03:35]} Qg6+ {[%emt 0:05:07]} 42. Kh3 {[%emt 0:01:30]} Qd3+ {[%emt 0:03:25]} 43. Kh4 {[%emt 0:00:53]} Qxd2 {[%emt 0:02:48]} 44. Qc8+ {[%emt 0:05:14]} Kf7 {[%emt 0:02:21]} 45. Qd7+ {[%emt 0:00:17]} Kf6 {[%emt 0:00:36]} 46. Qxc6+ {[%emt 0:01:50]} Ke5 {[%emt 0:01:00]} 47. Qd6+ {[%emt 0:00:20]} Kd4 {[%emt 0:03:37]} 48. c6 {[%emt 0:02:27]} Qxf2+ {[%emt 0:00:23]} 49. Kh5 {[%emt 0:00:04]} Qe2+ {[%emt 0:01:21]} 50. Kxh6 {[%emt 0:00:15]} Qe5 {[%emt 0:00:22]} 51. Qa3 {[%emt 0:00:33]} Qe6+ {[%emt 0:02:18]} 52. Kg5 {[%emt 0:00:11]} Qf6+ {[%emt 0:00:14]} 53. Kg4 {[%emt 0:00:10]} Qg6+ {[%emt 0:00:22]} 54. Kh4 {[%emt 0:00:09]} Qh6+ {[%emt 0:00:59]} 55. Kg4 {[%emt 0:00:14]} Ne3+ {[%emt 0:01:10]} 0-1

[Event "Niedersachsen-ch Meister 2024"]
[Site "Verden Aller"]
[Date "2024.01.04"]
[Round "1.2"]
[White "Stelmaszyk, Nico"]
[Black "Sauer, Tim"]
[Result "1-0"]
[ECO "B22"]
[WhiteElo "2363"]
[BlackElo "2126"]
[Annotator "RC"]
[PlyCount "67"]
[EventDate "2024.01.01"]
[EventType "swiss"]
[EventCountry "GER"]
[SourceTitle "playchess.com"]
[Source "ChessBase"]
[SourceQuality "1"]
[TimeControl "40/5400+30:1800+30"]

1. e4 {[%emt 0:00:03]} c5 {[%emt 0:00:07]} 2. c3 {[%emt 0:00:04]} d5 {[%emt 0:00:13]} 3. exd5 {[%emt 0:00:04]} Qxd5 {[%emt 0:00:07]} 4. d4 {[%emt 0:00:04]} Nf6 {[%emt 0:00:09]} 5. Nf3 {[%emt 0:00:04]} Bg4 {[%emt 0:00:11]} 6. dxc5 {[%emt 0:00:05]} Qxd1+ {[%emt 0:09:58]} 7. Kxd1 {[%emt 0:00:07]} e5 {[%emt 0:04:38]} 8. b4 {[%emt 0:00:04]} e4 {[%emt 0:09:06]} 9. h3 {[%emt 0:00:04]} Bh5 {[%emt 0:10:58]} 10. g4 {[%emt 0:00:06]} Nxg4 {[%emt 0:07:48]} 11. hxg4 {[%emt 0:00:06]} Bxg4 {[%emt 0:00:06]} 12. Rg1 {[%emt 0:00:04]} Bxf3+ {[%emt 0:06:59]} 13. Kc2 {[%emt 0:00:06]} Nc6 {[%emt 0:10:13]} 14. Nd2 {[%emt 0:00:07]} Ne5 {[%emt 0:03:47]} 15. Bb5+ {[%emt 0:08:18]} Ke7 {[%emt 0:00:42]} 16. Nxf3 {[%emt 0:01:38]} Nxf3 {[%emt 0:00:12]} 17. Rd1 {[%emt 0:00:18]} Ke6 {[%emt 0:20:18]} 18. Bc4+ {[%emt 0:20:21]} Kf6 {[%emt 0:01:35]} 19. Bd5 {[%emt 0:00:50]} Ke5 {[%emt 0:10:13]} 20. Bxb7 {[%emt 0:02:14]} Rb8 {[%emt 0:00:15]} 21. c6 {[%emt 0:00:52]} Bd6 {[%emt 0:01:59]} 22. Be3 {[%emt 0:00:29]} Rbd8 {[%emt 0:01:13]} 23. Bxa7 {[%emt 0:00:59]} h5 {[%emt 0:00:28]} 24. Bb6 {[%emt 0:00:22]} Rb8 {[%emt 0:00:20]} 25. a4 {[%emt 0:00:56]} h4 {[%emt 0:00:43]} 26. a5 {[%emt 0:00:17]} h3 {[%emt 0:00:36]} 27. a6 {[%emt 0:00:18]} h2 {[%emt 0:00:22]} 28. c7 {[%emt 0:01:38]} Rbf8 {[%emt 0:00:35]} 29. a7 {[%emt 0:01:14]} Ng1 {[%emt 0:00:35]} 30. Rxg1 {[%emt 0:00:24]} hxg1=Q {[%emt 0:00:12]} 31. Rxg1 {[%emt 0:00:04]} Ke6 {[%emt 0:00:40]} 32. Ra1 {[%emt 0:00:15]} Ra8 {[%emt 0:00:38]} 33. c8=Q+ {[%emt 0:00:14]} Rhxc8 {[%emt 0:00:09]} 34. Bxc8+ {[%emt 0:00:08]} 1-0

[Event "Niedersachsen-ch Meister 2024"]
[Site "Verden Aller"]
[Date "2024.01.04"]
[Round "1.3"]
[White "Reimer, Philip"]
[Black "Pubantz, Jan"]
[Result "1/2-1/2"]
[ECO "B12"]
[WhiteElo "2152"]
[BlackElo "2288"]
[Annotator "RC"]
[PlyCount "85"]
[EventDate "2024.01.01"]
[EventType "swiss"]
[EventCountry "GER"]
[SourceTitle "playchess.com"]
[Source "ChessBase"]
[SourceQuality "1"]
[TimeControl "40/5400+30:1800+30"]

1. e4 {[%emt 0:00:03]} c6 {[%emt 0:00:01]} 2. d4 {[%emt 0:00:09]} d5 {[%emt 0:00:01]} 3. e5 {[%emt 0:00:08]} Bf5 {[%emt 0:00:01]} 4. Nf3 {[%emt 0:00:07]} e6 {[%emt 0:00:04]} 5. Be2 {[%emt 0:00:06]} c5 {[%emt 0:00:02]} 6. Be3 {[%emt 0:00:08]} Qb6 {[%emt 0:00:11]} 7. O-O {[%emt 0:00:10]} Nc6 {[%emt 0:03:06]} 8. c4 {[%emt 0:01:05]} dxc4 {[%emt 0:19:12]} 9. Na3 {[%emt 0:24:30]} Bd3 {[%emt 0:07:16]} 10. Bxd3 {[%emt 0:14:40]} cxd3 {[%emt 0:00:01]} 11. dxc5 {[%emt 0:09:56]} Bxc5 {[%emt 0:17:27]} 12. Nc4 {[%emt 0:07:00]} Qa6 {[%emt 0:01:20]} 13. Rc1 {[%emt 0:09:24]} Be7 {[%emt 0:02:41]} 14. Qxd3 {[%emt 0:01:23]} Nb4 {[%emt 0:07:22]} 15. Qe4 {[%emt 0:07:36]} Nd5 {[%emt 0:01:12]} 16. Qg4 {[%emt 0:04:05]} Kf8 {[%emt 0:04:55]} 17. Nd4 {[%emt 0:02:23]} g6 {[%emt 0:04:55]} 18. Bg5 {[%emt 0:02:26]} Kg7 {[%emt 0:03:50]} 19. h4 {[%emt 0:00:04]} Bxg5 {[%emt 0:07:41]} 20. hxg5 {[%emt 0:07:33]} h6 {[%emt 0:02:48]} 21. Nd6 {[%emt 0:00:55]} hxg5 {[%emt 0:02:39]} 22. Nxe6+ {[%emt 0:01:28]} fxe6 {[%emt 0:01:49]} 23. Qxe6 {[%emt 0:00:12]} Nge7 {[%emt 0:03:14]} 24. Rfd1 {[%emt 0:00:53]} Rhf8 {[%emt 0:04:58]} 25. Rxd5 {[%emt 0:02:52]} Nxd5 {[%emt 0:00:11]} 26. Qxd5 {[%emt 0:00:09]} Qb6 {[%emt 0:00:43]} 27. Qxb7+ {[%emt 0:01:02]} Qxb7 {[%emt 0:01:40]} 28. Nxb7 {[%emt 0:00:04]} Rac8 {[%emt 0:02:42]} 29. Nc5 {[%emt 0:00:39]} Kf7 {[%emt 0:00:20]} 30. b4 {[%emt 0:00:17]} Rfd8 {[%emt 0:01:12]} 31. Rc3 {[%emt 0:01:20]} Rd1+ {[%emt 0:01:18]} 32. Kh2 {[%emt 0:00:07]} Rd4 {[%emt 0:00:07]} 33. Ra3 {[%emt 0:01:16]} Rh4+ {[%emt 0:01:00]} 34. Kg3 {[%emt 0:00:11]} Rc7 {[%emt 0:00:26]} 35. e6+ {[%emt 0:00:21]} Ke8 {[%emt 0:00:31]} 36. Rf3 {[%emt 0:01:10]} a5 {[%emt 0:00:50]} 37. a3 {[%emt 0:00:37]} Rc6 {[%emt 0:00:32]} 38. Rb3 {[%emt 0:01:48]} axb4 {[%emt 0:00:09]} 39. axb4 {[%emt 0:00:13]} Rb6 {[%emt 0:00:20]} 40. b5 {[%emt 0:01:25]} Ke7 {[%emt 0:00:44]} 41. Rd3 {[%emt 0:17:06]} Rc4 {[%emt 0:20:34]} 42. Rd7+ {[%emt 0:01:00]} Ke8 {[%emt 0:01:18]} 43. Na6 {[%emt 0:10:29]} 1/2-1/2

[Event "Niedersachsen-ch Meister 2024"]
[Site "Verden Aller"]
[Date "2024.01.04"]
[Round "1.4"]
[White "Hampel, Felix"]
[Black "Renner, Kai"]
[Result "1-0"]
[ECO "A88"]
[WhiteElo "2294"]
[BlackElo "2153"]
[Annotator "RC"]
[PlyCount "95"]
[EventDate "2024.01.01"]
[EventType "swiss"]
[EventCountry "GER"]
[SourceTitle "playchess.com"]
[Source "ChessBase"]
[SourceQuality "1"]
[TimeControl "40/5400+30:1800+30"]

1. c4 {[%emt 0:00:03]} f5 {[%emt 0:00:08]} 2. Nf3 {[%emt 0:00:10]} Nf6 {[%emt 0:00:09]} 3. g3 {[%emt 0:00:18]} g6 {[%emt 0:00:10]} 4. Bg2 {[%emt 0:00:07]} Bg7 {[%emt 0:00:07]} 5. O-O {[%emt 0:00:06]} O-O {[%emt 0:00:06]} 6. d4 {[%emt 0:00:19]} d6 {[%emt 0:00:09]} 7. Nc3 {[%emt 0:00:10]} c6 {[%emt 0:00:40]} 8. d5 {[%emt 0:01:00]} e5 {[%emt 0:00:33]} 9. dxe6 {[%emt 0:00:18]} Bxe6 {[%emt 0:00:11]} 10. b3 {[%emt 0:00:36]} Na6 {[%emt 0:01:29]} 11. Ng5 {[%emt 0:00:49]} Bc8 {[%emt 0:01:14]} 12. Bb2 {[%emt 0:00:20]} Qe7 {[%emt 0:01:00]} 13. Qc2 {[%emt 0:00:48]} h6 {[%emt 0:02:14]} 14. Nf3 {[%emt 0:00:19]} Be6 {[%emt 0:12:19]} 15. Nh4 {[%emt 0:01:00]} Bf7 {[%emt 0:05:42]} 16. Rae1 {[%emt 0:05:18]} d5 {[%emt 0:31:44]} 17. cxd5 {[%emt 0:00:36]} Nb4 {[%emt 0:02:10]} 18. Qb1 {[%emt 0:01:41]} Nfxd5 {[%emt 0:02:51]} 19. Nxd5 {[%emt 0:01:35]} cxd5 {[%emt 0:01:28]} 20. Bxg7 {[%emt 0:12:45]} Kxg7 {[%emt 0:00:06]} 21. e3 {[%emt 0:01:49]} Qf6 {[%emt 0:02:16]} 22. Rd1 {[%emt 0:03:50]} Rfd8 {[%emt 0:02:30]} 23. Rd2 {[%emt 0:04:59]} Rd6 {[%emt 0:03:24]} 24. Rfd1 {[%emt 0:09:43]} Rad8 {[%emt 0:00:17]} 25. Nf3 {[%emt 0:01:28]} g5 {[%emt 0:11:40]} 26. Nd4 {[%emt 0:01:45]} Bg6 {[%emt 0:00:05]} 27. Qc1 {[%emt 0:05:23]} Bh5 {[%emt 0:03:49]} 28. Bh3 {[%emt 0:05:11]} g4 {[%emt 0:13:58]} 29. Bg2 {[%emt 0:00:24]} a6 {[%emt 0:01:52]} 30. Nxf5+ {[%emt 0:05:31]} Qxf5 {[%emt 0:00:10]} 31. Qc3+ {[%emt 0:00:07]} Qf6 {[%emt 0:00:56]} 32. Qxb4 {[%emt 0:00:10]} d4 {[%emt 0:00:30]} 33. Rxd4 {[%emt 0:00:43]} Rxd4 {[%emt 0:00:05]} 34. Rxd4 {[%emt 0:00:12]} Rxd4 {[%emt 0:00:06]} 35. Qxd4 {[%emt 0:00:17]} Qxd4 {[%emt 0:00:04]} 36. exd4 {[%emt 0:00:06]} b6 {[%emt 0:00:04]} 37. Kf1 {[%emt 0:00:46]} Kf6 {[%emt 0:00:10]} 38. Ke2 {[%emt 0:00:11]} Bg6 {[%emt 0:00:28]} 39. Ke3 {[%emt 0:00:33]} Bb1 {[%emt 0:00:17]} 40. a3 {[%emt 0:01:00]} a5 {[%emt 0:00:05]} 41. h3 {[%emt 0:33:09]} gxh3 {[%emt 0:30:21]} 42. Bxh3 {[%emt 0:00:08]} Ba2 {[%emt 0:00:23]} 43. b4 {[%emt 0:00:09]} Bd5 {[%emt 0:01:10]} 44. bxa5 {[%emt 0:01:06]} bxa5 {[%emt 0:00:05]} 45. f4 {[%emt 0:00:21]} Ke7 {[%emt 0:00:39]} 46. Bg4 {[%emt 0:00:29]} Kf6 {[%emt 0:00:06]} 47. Bf3 {[%emt 0:00:15]} Be6 {[%emt 0:00:03]} 48. d5 {[%emt 0:00:20]} 1-0

[Event "Niedersachsen-ch Meister 2024"]
[Site "Verden Aller"]
[Date "2024.01.04"]
[Round "1.5"]
[White "Evering, Soeren"]
[Black "Voege, Tobias"]
[Result "0-1"]
[ECO "C11"]
[WhiteElo "2034"]
[BlackElo "2283"]
[Annotator "RC"]
[PlyCount "96"]
[EventDate "2024.01.01"]
[EventType "swiss"]
[EventCountry "GER"]
[SourceTitle "playchess.com"]
[Source "ChessBase"]
[SourceQuality "1"]
[TimeControl "40/5400+30:1800+30"]

1. e4 {[%emt 0:00:06]} e6 {[%emt 0:00:05]} 2. d4 {[%emt 0:00:05]} d5 {[%emt 0:00:03]} 3. Nc3 {[%emt 0:00:05]} Nf6 {[%emt 0:00:04]} 4. e5 {[%emt 0:00:06]} Nfd7 {[%emt 0:00:04]} 5. f4 {[%emt 0:00:17]} c5 {[%emt 0:00:05]} 6. Nf3 {[%emt 0:00:07]} Nc6 {[%emt 0:00:03]} 7. Be3 {[%emt 0:00:19]} cxd4 {[%emt 0:00:37]} 8. Nxd4 {[%emt 0:00:16]} Qb6 {[%emt 0:00:05]} 9. Qd2 {[%emt 0:07:55]} Qxb2 {[%emt 0:00:14]} 10. Rb1 {[%emt 0:04:01]} Qa3 {[%emt 0:00:07]} 11. Bb5 {[%emt 0:26:01]} Nxd4 {[%emt 0:00:29]} 12. Bxd4 {[%emt 0:06:38]} a6 {[%emt 0:00:25]} 13. Bxd7+ {[%emt 0:03:38]} Bxd7 {[%emt 0:00:08]} 14. Rxb7 {[%emt 0:03:44]} Bb4 {[%emt 0:05:12]} 15. O-O {[%emt 0:03:32]} Bc8 {[%emt 0:02:34]} 16. Rb6 {[%emt 0:02:35]} O-O {[%emt 0:00:51]} 17. Rb1 {[%emt 0:02:27]} Bc5 {[%emt 0:03:07]} 18. R6b3 {[%emt 0:04:49]} Qa5 {[%emt 0:00:12]} 19. Qe3 {[%emt 0:04:14]} Bxd4 {[%emt 0:01:32]} 20. Qxd4 {[%emt 0:00:08]} Bd7 {[%emt 0:04:51]} 21. f5 {[%emt 0:14:21]} Rac8 {[%emt 0:16:12]} 22. f6 {[%emt 0:03:33]} Rc4 {[%emt 0:01:42]} 23. Qd2 {[%emt 0:05:43]} Rfc8 {[%emt 0:03:12]} 24. Qg5 {[%emt 0:03:27]} Qc5+ {[%emt 0:01:35]} 25. Kh1 {[%emt 0:03:08]} Qf8 {[%emt 0:03:34]} 26. Qg3 {[%emt 0:00:03]} g6 {[%emt 0:08:56]} 27. h3 {[%emt 0:00:07]} a5 {[%emt 0:02:53]} 28. Nb5 {[%emt 0:02:25]} a4 {[%emt 0:01:49]} 29. R3b2 {[%emt 0:00:29]} Bxb5 {[%emt 0:01:21]} 30. Rxb5 {[%emt 0:00:05]} Rxc2 {[%emt 0:00:24]} 31. R1b2 {[%emt 0:01:02]} R2c3 {[%emt 0:12:50]} 32. Qf4 {[%emt 0:00:31]} R3c4 {[%emt 0:00:37]} 33. Qe3 {[%emt 0:00:29]} Re4 {[%emt 0:01:13]} 34. Qa7 {[%emt 0:00:28]} Rxe5 {[%emt 0:02:08]} 35. Rb8 {[%emt 0:00:24]} Re1+ {[%emt 0:00:47]} 36. Kh2 {[%emt 0:00:02]} Rec1 {[%emt 0:00:54]} 37. Rxc8 {[%emt 0:00:53]} Rxc8 {[%emt 0:00:07]} 38. Qxa4 {[%emt 0:00:12]} Qd6+ {[%emt 0:01:10]} 39. g3 {[%emt 0:00:24]} Qe5 {[%emt 0:01:04]} 40. Rf2 {[%emt 0:01:02]} Rd8 {[%emt 0:06:31]} 41. Qa5 {[%emt 0:05:15]} Qd6 {[%emt 0:02:51]} 42. a4 {[%emt 0:02:06]} e5 {[%emt 0:02:00]} 43. Qd2 {[%emt 0:00:44]} d4 {[%emt 0:02:06]} 44. Qh6 {[%emt 0:00:41]} Qf8 {[%emt 0:00:04]} 45. Qg5 {[%emt 0:01:03]} e4 {[%emt 0:01:41]} 46. Kg1 {[%emt 0:01:36]} e3 {[%emt 0:01:28]} 47. Rb2 {[%emt 0:00:10]} Qd6 {[%emt 0:01:10]} 48. Qh6 {[%emt 0:00:37]} Qxf6 {[%emt 0:00:13]} 0-1

[Event "Niedersachsen-ch Meister 2024"]
[Site "Verden Aller"]
[Date "2024.01.04"]
[Round "1.6"]
[White "von Mettenheim, Johannes"]
[Black "Elsner, Robert"]
[Result "1-0"]
[ECO "E04"]
[WhiteElo "2284"]
[BlackElo "2030"]
[Annotator "RC"]
[PlyCount "57"]
[EventDate "2024.01.01"]
[EventType "swiss"]
[EventCountry "GER"]
[SourceTitle "playchess.com"]
[Source "ChessBase"]
[SourceQuality "1"]
[TimeControl "40/5400+30:1800+30"]

1. d4 {[%emt 0:00:03]} Nf6 {[%emt 0:00:21]} 2. Nf3 {[%emt 0:00:09]} e6 {[%emt 0:00:07]} 3. c4 {[%emt 0:00:19]} d5 {[%emt 0:00:16]} 4. g3 {[%emt 0:00:20]} dxc4 {[%emt 0:00:08]} 5. Bg2 {[%emt 0:00:06]} Bd7 {[%emt 0:00:04]} 6. O-O {[%emt 0:00:18]} Bc6 {[%emt 0:00:07]} 7. Qc2 {[%emt 0:02:37]} Nbd7 {[%emt 0:00:19]} 8. Nbd2 {[%emt 0:02:13]} Be7 {[%emt 0:14:18]} 9. Rd1 {[%emt 0:04:56]} O-O {[%emt 0:00:45]} 10. Nxc4 {[%emt 0:00:15]} Be4 {[%emt 0:26:13]} 11. Qb3 {[%emt 0:01:45]} c5 {[%emt 0:05:09]} 12. Bf4 {[%emt 0:01:13]} Nd5 {[%emt 0:08:24]} 13. Bd6 {[%emt 0:02:50]} cxd4 {[%emt 0:04:13]} 14. Bxe7 {[%emt 0:01:18]} Qxe7 {[%emt 0:02:15]} 15. Rxd4 {[%emt 0:00:59]} Nc5 {[%emt 0:07:07]} 16. Qa3 {[%emt 0:01:47]} Qf6 {[%emt 0:13:19]} 17. Rad1 {[%emt 0:04:44]} b6 {[%emt 0:00:05]} 18. b4 {[%emt 0:01:24]} Bxf3 {[%emt 0:02:58]} 19. Bxf3 {[%emt 0:00:32]} Nb7 {[%emt 0:02:13]} 20. e4 {[%emt 0:04:52]} b5 {[%emt 0:03:56]} 21. exd5 {[%emt 0:06:24]} bxc4 {[%emt 0:00:24]} 22. dxe6 {[%emt 0:00:44]} fxe6 {[%emt 0:03:55]} 23. Bxb7 {[%emt 0:01:24]} Qxf2+ {[%emt 0:00:19]} 24. Kh1 {[%emt 0:00:03]} Qe2 {[%emt 0:01:18]} 25. Bg2 {[%emt 0:01:16]} c3 {[%emt 0:03:32]} 26. Qxc3 {[%emt 0:02:01]} Rac8 {[%emt 0:00:13]} 27. Qd2 {[%emt 0:00:53]} Rc2 {[%emt 0:01:05]} 28. Qxe2 {[%emt 0:00:09]} Rxe2 {[%emt 0:00:02]} 29. R4d2 {[%emt 0:00:18]} 1-0

[Event "Niedersachsen-ch Meister 2024"]
[Site "Verden Aller"]
[Date "2024.01.04"]
[Round "1.7"]
[White "Aden, Tammo"]
[Black "Knuedel, Torben"]
[Result "0-1"]
[ECO "E09"]
[WhiteElo "2025"]
[BlackElo "2287"]
[Annotator "RC"]
[PlyCount "89"]
[EventDate "2024.01.01"]
[EventType "swiss"]
[EventCountry "GER"]
[SourceTitle "playchess.com"]
[Source "ChessBase"]
[SourceQuality "1"]
[TimeControl "40/5400+30:1800+30"]

1. d4 {[%emt 0:00:03]} Nf6 {[%emt 0:00:05]} 2. Nf3 {[%emt 0:00:13]} d5 {[%emt 0:00:06]} 3. c4 {[%emt 0:00:12]} e6 {[%emt 0:00:06]} 4. g3 {[%emt 0:00:15]} Be7 {[%emt 0:00:04]} 5. Bg2 {[%emt 0:00:04]} O-O {[%emt 0:00:07]} 6. O-O {[%emt 0:00:07]} a5 {[%emt 0:00:11]} 7. Nbd2 {[%emt 0:01:48]} Nbd7 {[%emt 0:05:02]} 8. Qc2 {[%emt 0:03:35]} c6 {[%emt 0:02:12]} 9. e4 {[%emt 0:08:34]} b6 {[%emt 0:15:39]} 10. Rd1 {[%emt 0:09:43]} Bb7 {[%emt 0:03:26]} 11. b3 {[%emt 0:13:59]} Rc8 {[%emt 0:02:58]} 12. Bb2 {[%emt 0:02:41]} Qc7 {[%emt 0:05:59]} 13. Rac1 {[%emt 0:04:32]} Qb8 {[%emt 0:01:04]} 14. Qb1 {[%emt 0:03:23]} h6 {[%emt 0:01:59]} 15. Ne5 {[%emt 0:08:15]} Rfd8 {[%emt 0:04:36]} 16. a3 {[%emt 0:06:38]} Nxe5 {[%emt 0:08:01]} 17. dxe5 {[%emt 0:00:06]} Ng4 {[%emt 0:01:21]} 18. Nf3 {[%emt 0:14:11]} Bc5 {[%emt 0:01:22]} 19. Rf1 {[%emt 0:02:08]} d4 {[%emt 0:08:10]} 20. Rcd1 {[%emt 0:09:07]} Nxe5 {[%emt 0:05:31]} 21. Nxd4 {[%emt 0:00:51]} a4 {[%emt 0:00:24]} 22. Qc2 {[%emt 0:03:40]} Ba6 {[%emt 0:08:35]} 23. b4 {[%emt 0:02:25]} Bxd4 {[%emt 0:04:51]} 24. Rxd4 {[%emt 0:01:58]} Rxd4 {[%emt 0:00:09]} 25. Bxd4 {[%emt 0:00:03]} Nxc4 {[%emt 0:00:13]} 26. Rd1 {[%emt 0:01:50]} e5 {[%emt 0:03:43]} 27. Bc3 {[%emt 0:00:37]} Bb5 {[%emt 0:00:31]} 28. Qc1 {[%emt 0:02:29]} c5 {[%emt 0:04:49]} 29. bxc5 {[%emt 0:00:32]} Rxc5 {[%emt 0:01:23]} 30. Bb4 {[%emt 0:00:19]} Rc8 {[%emt 0:01:13]} 31. Qa1 {[%emt 0:00:32]} Qb7 {[%emt 0:01:47]} 32. Rc1 {[%emt 0:00:37]} Kh7 {[%emt 0:02:02]} 33. Qa2 {[%emt 0:00:46]} Bd7 {[%emt 0:03:03]} 34. Bf1 {[%emt 0:00:38]} b5 {[%emt 0:00:08]} 35. Qe2 {[%emt 0:00:26]} Be6 {[%emt 0:00:33]} 36. Bg2 {[%emt 0:00:14]} Rd8 {[%emt 0:01:18]} 37. Rd1 {[%emt 0:00:20]} Rd7 {[%emt 0:00:26]} 38. Rd3 {[%emt 0:00:24]} Qc8 {[%emt 0:01:05]} 39. Bf1 {[%emt 0:00:42]} Rc7 {[%emt 0:01:22]} 40. Rc3 {[%emt 0:00:37]} Rd7 {[%emt 0:01:15]} 41. Rd3 {[%emt 0:01:38]} Rd4 {[%emt 0:04:23]} 42. Rxd4 {[%emt 0:17:23]} exd4 {[%emt 0:00:02]} 43. Bg2 {[%emt 0:00:30]} Qd7 {[%emt 0:01:33]} 44. Qd3 {[%emt 0:02:07]} Ne5 {[%emt 0:01:02]} 45. Qxb5 {[%emt 0:00:23]} 0-1